Cogmind - Beta 14 @@@ ROGUE MODE // 2024.10.06 @ 20:38:46 Player: OctagonalPrism Result: Destroyed by P-80 Master with Gamma Rifle Performance ------------- Evolutions (8) 4000 Regions Visited (12) 2400 Robots Destroyed (107) 535 Value Destroyed (3902) 3902 Prototype IDs (83) 1660 Alien Tech Used (2) 400 Bonus (2744) 2744 TOTAL SCORE: 15641 Bonus ------- High Alert Combat Kills 243 Follower Combat Kills 1365 Registered with UFD 300 Hacked Protovariant 500 Scanned by Researcher 500 Friendly Fire -164 Cogmind --------- Core Integrity 0/1450 Matter 262/300 Energy 44/100 System Corruption 4% Temperature Cool (0) Movement Core (200) Ox3 Location -2/Quarantine Parts ------- > --- POWER (1) -------- (None) > --- PROPULSION (4) --- (None) > --- UTILITY (16) ----- Spectral Analyzer Experimental Signal Interpreter Advanced Terrain Scan Processor Advanced Terrain Scan Processor Armor Integrity Analyzer Experimental Hacking Suite A0-MCA's Component Scanner Improved Corruption Screen > --- WEAPON (2) ------- Enhanced Quantum Rifle Enhanced Quantum Rifle > --- INVENTORY (5) ---- Improved Diametric Drive High-capacity Matter Pod (0) Phase Armor Focal Shield Peak State ------------ > --- POWER ------------ Micro Antimatter Reactor > --- PROPULSION ------- Field Propulsion Array Field Propulsion Array > --- UTILITY ---------- Spectral Analyzer Advanced Sensor Array Experimental Signal Interpreter Improved Terrain Scanner Advanced Terrain Scan Processor Advanced Terrain Scan Processor Advanced Targeting Computer Advanced Target Analyzer Core Analyzer Armor Integrity Analyzer Improved Phase Shifter Experimental Hacking Suite Improved System Shield A0-MCA's Component Scanner > --- WEAPON ----------- Omega Cannon > --- INVENTORY -------- Improved Diametric Drive High-capacity Matter Pod Focal Shield Railgun Railgun [Rating: 144] Favorites ----------- Power Light Nuclear Core Engine Ion Engine Power Core Light Nuclear Core Reactor Micro Antimatter Reactor Propulsion Light Treads Treads Light Treads Wheel Subdweller Monowheel Hover Unit Antigrav Array Flight Unit Flightbrick Utility High-capacity Storage Unit Device Structural Scanner Storage High-capacity Storage Unit Processor Advanced Terrain Scan Processor Hackware Improved System Shield Protection Hardened Light Armor Plating Artifact Phase Armor Weapon Improved Light Cannon Energy Gun Medium Laser Ballistic Gun Autogun Ballistic Cannon Improved Light Cannon Launcher Grenade Launcher Special Weapon Mining Laser Slashing Weapon Molecular Scythe Build | -11 -10 -10 -8 -8 -6 -5 -4 -4 -3 -3 -2 -2 ------- Run | Yrd Mat Sub Rec Scr Fac Fac Fac Ext Res Tes Res Qua Slots Evolved 16 | . . . . . 8 2 2 . 2 . 2 . Power . | . . . . . . . . . . . . . Propulsion 2 | . . . . . 2 . . . . . . . Utility 14 | . . . . . 6 2 2 . 2 . 2 . Weapon . | . . . . . . . . . . . . . Parts Attached 173 | 6 16 22 10 15 19 16 18 7 14 11 13 6 Power 13 | 1 1 1 1 1 2 1 . 1 2 . 2 . Engine 3 | 1 . 1 1 . . . . . . . . . Core 6 | . 1 . . 1 2 1 . 1 . . . . Reactor 4 | . . . . . . . . . 2 . 2 . Propulsion 24 | 2 2 4 2 6 1 . . . 2 1 4 . Treads 8 | 1 2 1 2 2 . . . . . . . . Leg . | . . . . . . . . . . . . . Wheel 8 | 1 . 3 . 4 . . . . . . . . Hover 2 | . . . . . . . . . . . 2 . Flight 6 | . . . . . 1 . . . 2 1 2 . Utility 73 | 1 6 12 5 3 9 8 11 4 5 1 4 4 Device 35 | . 1 6 2 1 4 4 7 4 1 . 4 1 Storage 5 | 1 2 2 . . . . . . . . . . Processor 18 | . 1 . . 1 5 3 4 . 3 . . 1 Hackware 3 | . . . . . . 1 . . 1 . . 1 Protection 11 | . 2 4 3 1 . . . . . 1 . . Artifact 1 | . . . . . . . . . . . . 1 Weapon 63 | 2 7 5 2 5 7 7 7 2 5 9 3 2 Energy Gun 4 | 1 . . . . . . . . . 1 . 2 Energy Cannon . | . . . . . . . . . . . . . Ballistic Gun 35 | 1 5 2 1 3 4 5 4 2 3 3 2 . Ballistic Cannon 6 | . 2 1 1 1 . . . . . 1 . . Launcher 1 | . . 1 . . . . . . . . . . Special Weapon 2 | . . 1 . 1 . . . . . . . . Impact Weapon . | . . . . . . . . . . . . . Slashing Weapon 15 | . . . . . 3 2 3 . 2 4 1 . Piercing Weapon . | . . . . . . . . . . . . . Special Melee Weapon . | . . . . . . . . . . . . . Unidentified Prototypes 2 | . . . . . . . . . . . . 2 Parts Lost 34 | . . 5 1 . . 1 2 2 3 . 13 7 Power 7 | . . 1 1 . . . . 1 1 . 2 1 Propulsion 7 | . . 3 . . . . . . . . 2 2 Utility 14 | . . . . . . 1 2 1 1 . 6 3 Weapon 6 | . . 1 . . . . . . 1 . 3 1 Highest Loss Streak 8 | . . 2 1 . . 1 2 1 2 . 8 6 To Critical Strikes . | . . . . . . . . . . . . . Average Slot Usage (%) 91 | . 98 99 99 97 73 75 79 80 83 89 67 48 Engine 3 | . 4 11 13 . . . . . . . . . Core 6 | . 9 2 . 13 5 5 5 4 . . . . Treads 8 | . 13 14 14 13 . . . . . . . . Wheel 8 | . 14 13 14 13 . . . . . . . . Flight 2 | . . . . . 5 5 5 5 7 9 7 . Device 11 | . . 11 12 12 15 19 13 17 17 12 5 1 Storage 9 | . 14 14 14 14 . . . . . . . . Processor 13 | . 5 . . . 32 32 39 36 37 42 35 28 Hackware 1 | . . . . . . . 5 5 5 9 5 4 Protection 1 | . 8 2 1 . . . . . . 1 2 . Ballistic Gun 12 | . 25 7 14 14 11 9 7 9 6 4 5 . Ballistic Cannon 7 | . 1 13 14 14 . . . . . . . . Peak Build Rating 144 | 6 14 28 18 35 101 115 124 124 135 144 138 123 Average Rating 51 | 4 12 12 15 25 92 104 117 119 125 132 111 89 On Entrance 69 | . 6 11 15 16 35 92 115 123 124 132 134 99 Naked Turns . | . . . . . . . . . . . . . Heaviest Build 61 | 13 56 56 60 61 53 24 24 25 30 28 30 13 Greatest Support 52 | 20 20 20 20 30 24 24 36 36 30 30 52 52 Greatest Overweight (x) 6 | . 5 5 2 6 2 . . . 1 . 1 3 Average Overweight (x) 1 | . 4 2 2 3 . . . . . . . . Largest Inventory Capacity 20 | 8 20 20 20 20 20 5 5 5 5 5 5 5 Average Capacity 14 | 6 18 19 20 20 5 5 5 5 5 5 5 5 Most Carried 20 | 6 19 20 20 20 20 5 5 5 5 5 5 5 Average Carried 13 | 2 14 18 19 19 5 4 4 4 4 4 4 3 Final Capacity 20 | 8 20 20 20 20 5 5 5 5 5 5 5 5 Final Carried 20 | 6 19 20 19 20 5 5 5 4 4 5 3 5 Class Distribution -------------------- 64% | Mutant 17% | Scout 6% | Scavenger-Mutant 5% | Hacker-Scout 4% | Scavenger-Scout Dominant Class ---------------- Mutant | -10/Materials Mutant | -10/Subcaves Mutant | -8/Recycling Mutant | -8/Scraptown Scout | -6/Factory Scout | -5/Factory Scout | -4/Factory Scavenger-Scout | -4/Extension Scout | -3/Research Hacker-Scout | -3/Testing Scout | -2/Research Mutant | -2/Quarantine Resources | -11 -10 -10 -8 -8 -6 -5 -4 -4 -3 -3 -2 -2 ----------- Run | Yrd Mat Sub Rec Scr Fac Fac Fac Ext Res Tes Res Qua Matter Collected 5787 | 285 594 611 340 50 923 347 751 728 425 368 149 216 Remotely 232 | . . 132 . . . 100 . . . . . . Salvage Created 5613 | 102 566 197 202 . 868 355 1206 1017 607 49 428 16 Parts 318 | 4 50 15 11 . 42 25 59 49 40 4 17 2 Haulers Intercepted 3 | . 1 . . . . 1 . 1 . . . . Recyclers Shooed 5 | . 1 . . . . . 1 . . . 3 . Parts Field Recycled . | . . . . . . . . . . . . . Retrieved Matter . | . . . . . . . . . . . . . Parts Self-Destructed 17 | . . 17 . . . . . . . . . . Prevented . | . . . . . . . . . . . . . Kills | -11 -10 -10 -8 -8 -6 -5 -4 -4 -3 -3 -2 -2 ------- Run | Yrd Mat Sub Rec Scr Fac Fac Fac Ext Res Tes Res Qua Combat Hostiles Destroyed 61 | . 12 13 4 . 8 3 4 8 6 . 3 . Guns 50 | . 12 5 1 . 8 3 4 8 6 . 3 . Cannons 8 | . . 5 3 . . . . . . . . . AOE 3 | . . 3 . . . . . . . . . . Classes Destroyed 16 | 2 5 2 1 . 1 1 . 2 . 1 . 1 Worker 8 | 1 . . . . 3 . 2 1 . . 1 . Builder 9 | . 2 . . . . 1 4 1 1 . . . Tunneler 2 | . . . . . . . . 1 1 . . . Hauler 3 | . 1 . . . . 1 . 1 . . . . Recycler 9 | 1 . . . . 1 . 5 1 . . 1 . Operator 1 | . . . . . . . . . . . . 1 Turret 2 | . . 2 . . . . . . . . . . Watcher 11 | . 3 . . . 4 1 1 . 2 . . . Swarmer 9 | . 3 6 . . . . . . . . . . Grunt 22 | . 9 . . . 3 . 4 4 2 . . . Researcher 1 | . . . . . . . . . . 1 . . Sentry 10 | . . . 4 . 3 . . 2 1 . . . Hunter 4 | . . . . . . 1 . 1 . . 2 . Programmer 8 | . . . . . 2 2 . . 3 . 1 . Behemoth 1 | . . . . . . . . 1 . . . . Subdweller 7 | . . 7 . . . . . . . . . . Best Kill Streak 8 | 1 4 3 2 . 6 2 8 3 3 1 3 1 Combat Bots Only 3 | . 3 3 2 . 3 2 2 2 3 . 1 . Max Kills in Single Turn 2 | 1 1 1 1 . 2 1 1 2 1 1 1 1 Gunslinging . | . . . . . . . . . . . . . Exploded 1 | . . 1 . . . . . . . . . . Melee . | . . . . . . . . . . . . . Uniques/NPCs Destroyed . | . . . . . . . . . . . . . Combat | -11 -10 -10 -8 -8 -6 -5 -4 -4 -3 -3 -2 -2 -------- Run | Yrd Mat Sub Rec Scr Fac Fac Fac Ext Res Tes Res Qua Hostile Shots Fired 681 | . 42 117 6 . 80 16 30 34 63 7 171 115 Missed 274 | . 15 39 3 . 36 2 11 17 36 5 67 43 Damage Taken 7611 | . 332 1049 41 . 489 267 518 507 645 17 2349 1397 Core 1926 | . 25 178 . . 47 . . 47 188 . 739 702 Absorbed by Shields 11 | . . . . . . . . 11 . . . . Redirected to Core 10 | . . . . . . . . . . . . 10 Ignored by Resistances 262 | . . . . . . . . . . . 262 . Regen/Repaired (Parts) 469 | . 259 . . . 34 . 11 . . 104 61 . Core Remaining (%) 82 | 100 . . . 18 94 100 . 95 . 85 . . Volleys Fired 366 | 5 60 63 6 . 37 28 32 64 36 4 30 1 Largest 2 | 2 2 2 2 . 2 2 2 2 2 2 2 2 Hottest 130 | 70 70 100 62 . 64 80 80 75 75 70 70 130 Shots Fired 675 | 10 120 101 12 . 74 56 60 109 67 9 55 2 Gun 589 | 10 118 23 6 . 74 56 60 109 67 9 55 2 Cannon 63 | . 2 55 6 . . . . . . . . . Launcher 10 | . . 10 . . . . . . . . . . Special 13 | . . 13 . . . . . . . . . . Kinetic 645 | 5 120 78 12 . 74 56 60 109 67 9 55 . Thermal 20 | 5 . 13 . . . . . . . . . 2 Explosive 10 | . . 10 . . . . . . . . . . Electromagnetic . | . . . . . . . . . . . . . Robot Hit Streak 21 | 3 11 8 9 . 18 9 5 12 21 5 10 2 Robot Miss Streak 7 | 1 3 4 1 . 6 3 7 7 5 3 5 1 Penetration Max 2 | . . . . . 1 1 2 1 . . 1 . Secondary Targets 2 | . . . . . 1 . . . 1 . . . Max Gunslinging Chain 1 | . . . . . 1 . . . 1 . . . Shots Hit Robots 395 | 7 86 49 8 . 43 28 34 52 43 5 38 2 Core Hits 188 | 4 25 21 6 . 26 12 19 33 21 2 18 1 Critical Kills 26 | . . . . . 3 . 8 8 6 . 1 . Critical Parts Destroyed 31 | . . . . . 2 4 8 11 4 . 2 . Critical Strikes 61 | 1 . 2 . . 5 4 16 20 10 . 3 . Burn 1 | 1 . . . . . . . . . . . . Destroy 58 | . . . . . 5 4 16 20 10 . 3 . Blast 2 | . . 2 . . . . . . . . . . Melee Attacks 89 | . . . . . 7 2 25 15 12 25 1 2 Impact . | . . . . . . . . . . . . . Slashing 89 | . . . . . 7 2 25 15 12 25 1 2 Piercing . | . . . . . . . . . . . . . Sneak Attacks 11 | . . . . . . . 8 1 1 . . 1 Combat Hostiles . | . . . . . . . . . . . . . Follow-up Attacks . | . . . . . . . . . . . . . Damage Inflicted 9723 | 68 1318 1205 133 . 1468 784 1264 1197 963 101 1047 175 Guns 7243 | 68 1299 173 38 . 1355 784 387 1087 867 101 1047 37 Cannons 728 | . 19 614 95 . . . . . . . . . Explosions 531 | . . 418 . . 113 . . . . . . . Melee 1221 | . . . . . . . 877 110 96 . . 138 Ramming . | . . . . . . . . . . . . . Kinetic 7896 | 30 1318 787 133 . 1355 784 387 1087 867 101 1047 . Thermal 75 | 38 . . . . . . . . . . . 37 Explosive 531 | . . 418 . . 113 . . . . . . . Electromagnetic . | . . . . . . . . . . . . . Impact . | . . . . . . . . . . . . . Slashing 1221 | . . . . . . . 877 110 96 . . 138 Piercing . | . . . . . . . . . . . . . Highest Corruption 5 | . . . . . 2 2 1 1 5 5 3 4 Average Corruption 2 | . . . . . 1 1 1 1 4 5 1 3 Corruption Purged 1 | . . . . . . . 1 . . . . . Corruption Blocked . | . . . . . . . . . . . . . Effects 38 | . . . . . 5 3 2 6 7 14 . 1 Message Errors 10 | . . . . . . . 1 3 1 4 . 1 Matter Fused 8 | . . . . . 1 1 . 1 2 3 . . Heat Flow Errors 7 | . . . . . 1 1 1 1 1 2 . . Energy Discharges 1 | . . . . . . . . . 1 . . . Parts Fused 1 | . . . . . . 1 . . . . . . Data Loss (minor) 6 | . . . . . 2 . . . . 4 . . Data Loss (major) 1 | . . . . . 1 . . . . . . . Misfires 2 | . . . . . . . . 1 . 1 . . Alerts 1 | . . . . . . . . . 1 . . . Weapon Failures 1 | . . . . . . . . . 1 . . . Overload Shots . | . . . . . . . . . . . . . Overflow Damage 534 | . . 36 . . . . 334 . 56 . . 108 Projectiles 36 | . . 36 . . . . . . . . . . Explosions . | . . . . . . . . . . . . . Melee 498 | . . . . . . . 334 . 56 . . 108 Knockbacks 9 | . . 9 . . . . . . . . . . Impact . | . . . . . . . . . . . . . Kinetic 9 | . . 9 . . . . . . . . . . Secondary . | . . . . . . . . . . . . . Self-Inflicted Damage 47 | . . . . . 47 . . . . . . . Shots 1 | . . . . . 1 . . . . . . . Rammed . | . . . . . . . . . . . . . Targets Rammed . | . . . . . . . . . . . . . Kicked . | . . . . . . . . . . . . . Crushed . | . . . . . . . . . . . . . Highest Temperature 269 | 50 79 12 50 . 114 108 208 153 262 269 3 . Average Temperature 34 | 23 20 9 17 . 40 22 47 29 114 120 2 . Received Heat Transfer 972 | . 174 192 18 . 150 . 69 42 30 9 153 135 Siege Activations . | . . . . . . . . . . . . . Robots Corrupted . | . . . . . . . . . . . . . Combat Hostiles . | . . . . . . . . . . . . . Parts Fried 1 | . . . . . . . . 1 . . . . Impact Corruptions . | . . . . . . . . . . . . . Robots Melted . | . . . . . . . . . . . . . Combat Hostiles . | . . . . . . . . . . . . . Parts Melted 2 | 1 . . . . . . . 1 . . . . Heat Transferred 222 | 185 . . . . . . . . . . . 37 Parts Sabotaged . | . . . . . . . . . . . . . Parts Stolen . | . . . . . . . . . . . . . Parts Stripped . | . . . . . . . . . . . . . Power Chain Reactions . | . . . . . . . . . . . . . Alert | -11 -10 -10 -8 -8 -6 -5 -4 -4 -3 -3 -2 -2 ------- Run | Yrd Mat Sub Rec Scr Fac Fac Fac Ext Res Tes Res Qua Peak Influence 1115 | 10 264 . 130 . 581 463 414 1115 681 328 382 411 Initial 506 | . 6 . 7 . . 284 137 130 506 182 28 211 Average 212 | 2 91 . 37 . 302 356 262 452 396 215 146 307 Maximum Alert Level 4 | . 1 . . . 2 2 2 4 2 1 1 2 Low Security (%) 57 | 100 95 . 100 . 24 . 40 48 3 25 70 . Level 1 29 | . 4 . . . 47 72 42 12 68 74 29 95 Level 2 9 | . . . . . 27 27 16 6 27 . . 4 Level 3 3 | . . . . . . . . 29 . . . . Level 4 . | . . . . . . . . 2 . . . . Level 5 . | . . . . . . . . . . . . . High Security . | . . . . . . . . . . . . . Max Security . | . . . . . . . . . . . . . Squads Dispatched 38 | . 3 . . . 5 2 5 5 6 7 3 2 Investigation 15 | . 3 . . . 3 1 1 3 1 1 2 . Extermination 8 | . . . . . 2 1 1 . 2 1 1 . Reinforcement 13 | . . . . . . . 2 2 3 4 . 2 Assault 2 | . . . . . . . 1 . . 1 . . Garrison . | . . . . . . . . . . . . . Intercept . | . . . . . . . . . . . . . Searches Triggered . | . . . . . . . . . . . . . Construction Impeded 2 | . . . . . . . 1 1 . . . . Haulers Reinforced . | . . . . . . . . . . . . . Active Scanning Responses . | . . . . . . . . . . . . . Cargo Convoy Interrupts . | . . . . . . . . . . . . . Stealth | -11 -10 -10 -8 -8 -6 -5 -4 -4 -3 -3 -2 -2 --------- Run | Yrd Mat Sub Rec Scr Fac Fac Fac Ext Res Tes Res Qua Distress Signals 9 | . . . . . 1 . 2 . 3 1 2 . Communications Jammed . | . . . . . . . . . . . . . Distress Signals . | . . . . . . . . . . . . . Times Spotted 185 | . 17 21 2 . 19 5 18 33 20 7 29 14 Peak Tracking Total 12 | . 3 4 1 . 6 2 9 4 9 6 12 8 Tactical Retreats 19 | . 1 6 . . 3 . 4 1 . . 3 1 Traps | -11 -10 -10 -8 -8 -6 -5 -4 -4 -3 -3 -2 -2 ------- Run | Yrd Mat Sub Rec Scr Fac Fac Fac Ext Res Tes Res Qua Traps Triggered 5 | . 3 . . . . . 1 . . . . 1 Indirectly . | . . . . . . . . . . . . . Trap Hack Attempts . | . . . . . . . . . . . . . Triggered . | . . . . . . . . . . . . . Disarmed . | . . . . . . . . . . . . . Reprogrammed . | . . . . . . . . . . . . . Reused . | . . . . . . . . . . . . . Traps Extracted . | . . . . . . . . . . . . . Installed . | . . . . . . . . . . . . . Triggered 2 | . . . . . . . . 1 . . . 1 Machines | -11 -10 -10 -8 -8 -6 -5 -4 -4 -3 -3 -2 -2 ---------- Run | Yrd Mat Sub Rec Scr Fac Fac Fac Ext Res Tes Res Qua Machines Disabled 25 | . . 1 1 . 9 . 3 5 . 5 . 1 Max in Single Turn 5 | . . 1 1 . 5 . 2 2 . 1 . 1 Garrison Access 4 | . . . . . 1 . 1 . 1 1 . . Energy Cycler 1 | . . . . . . . . 1 . . . . Machines Repaired . | . . . . . . . . . . . . . Machines Dismantled . | . . . . . . . . . . . . . Machines Sabotaged . | . . . . . . . . . . . . . Overloaded Fab Kills . | . . . . . . . . . . . . . Hacking | -11 -10 -10 -8 -8 -6 -5 -4 -4 -3 -3 -2 -2 --------- Run | Yrd Mat Sub Rec Scr Fac Fac Fac Ext Res Tes Res Qua Machines Accessed 90 | . 10 3 12 7 11 7 9 10 8 10 2 1 Terminals 50 | . 7 . 6 . 4 5 4 9 5 7 2 1 Fabricators 6 | . . . . . 1 2 1 . 1 1 . . Repair Stations 6 | . 1 . . . 3 . 1 . . 1 . . Recycling Units 10 | . 2 . 5 . . . 2 1 . . . . Scanalyzers 1 | . . . . . 1 . . . . . . . Garrison Access 6 | . . . . . 2 . 1 . 2 1 . . Total Hacks 280 | . 34 12 42 29 24 21 24 30 30 28 4 2 Successful 174 | . 25 12 28 29 12 10 14 16 11 15 1 1 Failed 106 | . 9 . 14 . 12 11 10 14 19 13 3 1 Catastrophic 21 | . 1 . 3 . . 3 2 5 3 2 2 . Database Lockouts . | . . . . . . . . . . . . . Manual 65 | . 9 . 14 1 3 8 5 9 7 9 . . Terminals 159 | . 18 . 22 . 11 16 14 28 21 23 4 2 Fabricators 11 | . . . . . 1 5 1 . 2 2 . . Repair Stations 19 | . 7 . . . 8 . 2 . . 2 . . Recycling Units 30 | . 9 . 15 . . . 4 2 . . . . Scanalyzers 1 | . . . . . 1 . . . . . . . Garrison Access 14 | . . . . . 3 . 3 . 7 1 . . Terminal Hacks 105 | . 9 12 13 29 5 3 4 12 6 10 1 1 Record 40 | . . 9 6 25 . . . . . . . . Part Schematic 2 | . . . 1 . . . . . . 1 . . Robot Analysis 6 | . 2 . . 3 . . . . . 1 . . Prototype ID Bank 4 | . 1 . . . 2 . . 1 . . . . Open Door 7 | . . 1 . . . . 1 3 . 1 1 . Branch Access Points 1 | . . . . . . 1 . . . . . . Emergency Access Points 1 | . . . . . . 1 . . . . . . Terminal Index 2 | . . . 1 . . . . 1 . . . . Alert Level 12 | . 2 . . . . . . 4 3 2 . 1 Unreport Threat 4 | . . . . . . . . 1 2 1 . . Locate Traps 6 | . 2 . . . . . 1 1 1 1 . . Security Status 1 | . . . 1 . . . . . . . . . Surveillance Status 1 | . . . 1 . . . . . . . . . Recall Extermination 1 | . . . . . . . . . . 1 . . Hauler Manifests 2 | . 1 . 1 . . . . . . . . . Registered Components 2 | . . . . . 1 1 . . . . . . Zone Layout 9 | . 1 . 2 . 2 . 2 1 . 1 . . Derelict Proto ID Bank 2 | . . 1 . 1 . . . . . . . . Protovariant Controls 1 | . . . . . . . . . . 1 . . Release Object 1 | . . 1 . . . . . . . . . . Fabricator Hacks 7 | . . . . . 1 4 1 . 1 . . . Network Status 6 | . . . . . 1 3 1 . 1 . . . Build 1 | . . . . . . 1 . . . . . . Repair Station Hacks 13 | . 6 . . . 3 . 2 . . 2 . . Scan Component 7 | . 3 . . . 2 . 1 . . 1 . . Repair 6 | . 3 . . . 1 . 1 . . 1 . . Recycling Unit Hacks 16 | . 6 . 6 . . . 3 1 . . . . Process 2 | . 2 . . . . . . . . . . . Report Inventory 9 | . 2 . 4 . . . 2 1 . . . . Retrieve Matter 2 | . 2 . . . . . . . . . . . Retrieve Components 3 | . . . 2 . . . 1 . . . . . Scanalyzer . | . . . . . . . . . . . . . Garrison Access Hacks 4 | . . . . . 1 . 1 . 1 1 . . Seal Access 4 | . . . . . 1 . 1 . 1 1 . . Unauthorized Hacks 28 | . 4 . 8 . 2 3 3 3 3 2 . . Terminals 20 | . 3 . 3 . 2 3 2 2 3 2 . . Assimilate 1 | . . . . . . 1 . . . . . . Botnet 19 | . 3 . 3 . 2 2 2 2 3 2 . . Fabricators . | . . . . . . . . . . . . . Repair Stations 2 | . . . . . . . 1 1 . . . . Recycling Units 6 | . 1 . 5 . . . . . . . . . Recyclers 1 | . 1 . . . . . . . . . . . Tunnel 5 | . . . 5 . . . . . . . . . Fedlink 1 | . . . . . . . 1 . . . . . Scrapoids 1 | . . . . . . . . 1 . . . . Scanalyzers . | . . . . . . . . . . . . . Garrison Access . | . . . . . . . . . . . . . Data Cores Recovered . | . . . . . . . . . . . . . Used . | . . . . . . . . . . . . . Hacking Detections 58 | . 10 . 8 . 9 6 5 5 6 6 2 1 Full Trace Events 15 | . 2 . 3 . 3 1 . 2 1 1 2 . Feedback Events 1 | . . . . . . . . 1 . . . . Corruption 1 | . . . . . . . . 1 . . . . Feedback Blocked . | . . . . . . . . . . . . . Robot Schematics Acquired 2 | . . . . . . . . . . 2 . . Robots Built . | . . . . . . . . . . . . . Authchips . | . . . . . . . . . . . . . Time . | . . . . . . . . . . . . . Total Robot Build Rating . | . . . . . . . . . . . . . Part Schematics Acquired 6 | . . . 1 . . . . . . 5 . . Parts Built 2 | . . . . . . 2 . . . . . . Authchips . | . . . . . . . . . . . . . Time 128 | . . . . . . 128 . . . . . . Total Part Build Rating 16 | . . . . . . 16 . . . . . . Parts Repaired 6 | . 3 . . . 1 . 1 . . 1 . . Time 179 | . 90 . . . 19 . 50 . . 20 . . Parts Recycled . | . . . . . . . . . . . . . Recycled Matter 265 | . 265 . . . . . . . . . . . Retrieved Matter 265 | . 265 . . . . . . . . . . . Retrieved Components 11 | . . . 8 . . . 3 . . . . . Parts Scanalyzed . | . . . . . . . . . . . . . Part Schematics Acquired . | . . . . . . . . . . . . . Parts Damaged . | . . . . . . . . . . . . . Bothacking | -11 -10 -10 -8 -8 -6 -5 -4 -4 -3 -3 -2 -2 ------------ Run | Yrd Mat Sub Rec Scr Fac Fac Fac Ext Res Tes Res Qua Used RIF Installer . | . . . . . . . . . . . . . Robots Hacked . | . . . . . . . . . . . . . Non-combat . | . . . . . . . . . . . . . Combat . | . . . . . . . . . . . . . Robot Hacks Applied . | . . . . . . . . . . . . . Relay Couplers Released . | . . . . . . . . . . . . . Fabnet Peak Effective % . | . . . . . . . . . . . . . Robots Rewired . | . . . . . . . . . . . . . Allies Hacked . | . . . . . . . . . . . . . Hacks Repelled . | . . . . . . . . . . . . . Allies | -11 -10 -10 -8 -8 -6 -5 -4 -4 -3 -3 -2 -2 -------- Run | Yrd Mat Sub Rec Scr Fac Fac Fac Ext Res Tes Res Qua Total Allies 15 | . . . . . . 1 . 14 . . . . Largest Group 13 | . . . . . . 1 . 13 2 . . . Highest-Rated Group 603 | . . . . . . 26 . 603 165 . . . Highest-Rated Ally 159 | . . . . . . 26 . 159 125 . . . Total Orders . | . . . . . . . . . . . . . Ally Attacks 205 | . . . . . . . . 198 7 . . . Total Damage 5386 | . . . . . . . . 5229 157 . . . Kills 30 | . . . . . . . . 29 1 . . . Allies Corrupted . | . . . . . . . . . . . . . Allies Melted . | . . . . . . . . . . . . . Intel | -11 -10 -10 -8 -8 -6 -5 -4 -4 -3 -3 -2 -2 ------- Run | Yrd Mat Sub Rec Scr Fac Fac Fac Ext Res Tes Res Qua Robot Analysis Total 6 | . 2 . . 3 . . . . . 1 . . Derelict Logs Recovered 3 | . . 1 . 2 . . . . . . . . Drone Launches . | . . . . . . . . . . . . . Drone Recoveries . | . . . . . . . . . . . . . Exploration | -11 -10 -10 -8 -8 -6 -5 -4 -4 -3 -3 -2 -2 ------------- Run | Yrd Mat Sub Rec Scr Fac Fac Fac Ext Res Tes Res Qua Turns Passed 12866 | 131 1647 1542 1665 3356 711 566 810 855 694 469 261 159 Spaces Moved 10574 | 65 872 904 677 1854 1240 792 1136 950 972 529 351 232 Core 69 | 1 . . . . . . . . . . . 68 Treads 1086 | 61 43 . 389 593 . . . . . . . . Legs . | . . . . . . . . . . . . . Wheels 3285 | 3 829 904 288 1261 . . . . . . . . Hover 188 | . . . . . . . . . . . 24 164 Flight 5946 | . . . . . 1240 792 1136 950 972 529 327 . Fastest Speed 30 | 50 95 100 130 90 40 40 40 40 37 37 30 50 Average Speed 95 | 154 149 141 239 177 40 40 40 40 37 37 37 55 Slowest Speed 320 | 160 160 155 320 320 120 40 40 40 120 37 100 200 Overloaded Moves . | . . . . . . . . . . . . . Propulsion Burnouts . | . . . . . . . . . . . . . Robots Hopped 47 | . . . . . 2 10 16 9 5 2 3 . Cave-ins Triggered . | . . . . . . . . . . . . . Teleports 1 | . . . . . . . . . . . . 1 Exploration Rate (%) 48 | 5 99 35 99 95 36 21 24 81 28 65 13 34 Regions Visited 12 Branch Regions 6 Pre-discovered Areas 6 | . . . 5 1 . . . . . . . . Known Exits Taken 8 | . . . . 1 1 1 1 1 1 1 1 . Unknown Exits Taken 4 | 1 1 1 1 . . . . . . . . . Scrap Searched 7 | . . 3 . 4 . . . . . . . . Spaces Dug 56 | . . . . . 6 4 12 1 11 21 1 . Terrain Destroyed 282 | . . 42 . . 78 24 60 31 21 22 3 1 Melee 54 | . . . . . 6 2 12 1 11 21 1 . Projectile 97 | . . 2 . . 36 20 10 17 9 1 1 1 AOE 126 | . . 40 . . 36 . 37 13 . . . . Terrain Rammed . | . . . . . . . . . . . . . Walls Destroyed . | . . . . . . . . . . . . . Machines Disabled . | . . . . . . . . . . . . . Actions | -11 -10 -10 -8 -8 -6 -5 -4 -4 -3 -3 -2 -2 --------- Run | Yrd Mat Sub Rec Scr Fac Fac Fac Ext Res Tes Res Qua Total 12558 | 84 1114 1045 714 1926 1397 987 1373 1284 1206 753 420 255 Wait 1231 | 3 143 28 15 16 75 152 166 253 171 177 22 10 Move 10472 | 64 871 903 676 1853 1235 772 1103 934 961 524 344 232 Hop 43 | . . . . . 2 9 16 6 5 2 3 . Pick Up 76 | 6 14 21 1 13 7 3 3 1 3 2 1 1 Fast Attach 70 | 6 9 2 . 10 1 3 11 3 6 6 6 7 Attach 36 | . . 6 1 3 11 2 1 2 2 2 6 . Detach 22 | . 3 . . 5 2 1 4 1 . 2 3 1 Swap 68 | . 7 14 9 2 7 11 6 2 6 3 1 . Drop 84 | . 7 7 6 24 13 4 6 3 4 6 3 1 Fire 366 | 5 60 63 6 . 37 28 32 64 36 4 30 1 Melee 89 | . . . . . 7 2 25 15 12 25 1 2 Ram . | . . . . . . . . . . . . . Kick . | . . . . . . . . . . . . . Crush . | . . . . . . . . . . . . . Escape Stasis . | . . . . . . . . . . . . . Rewire . | . . . . . . . . . . . . . Trap . | . . . . . . . . . . . . . Miscellaneous 1 | . . 1 . . . . . . . . . . Route ------- -11/Scrapyard -10/Materials (discovered 6 exits: [*Mat x3] / [*Min x2] / *Sub) -10/Subcaves (discovered 3 exits: [*Mat x2] / *Rec) -8/Recycling (discovered 2 exits: *Fac / *Scr) -8/Scraptown (discovered 2 exits: *Fac x2) -6/Factory (discovered 4 exits: *Fac x2 / *Low x2) -5/Factory (discovered 4 exits: *Fac x2 / Upp x2) -4/Factory (discovered 2 exits: *Upp / *Ext) -4/Extension (discovered 3 exits: *Res x2 / *Cet) -3/Research -3/Testing -2/Research -2/Quarantine (discovered 1 exit: [*Acc]) History --------- Turn | Location | Event 9 | -11/Scrapyard | Discovered new exit (range 16) 132 | -11/Scrapyard | Entered Materials 321 | -10/Materials | Build established: Mutant 454 | -10/Materials | Discovered new exit (range 14) 665 | -10/Materials | Discovered new exit (range 12) 750 | -10/Materials | Discovered new exit (range 11) 1276 | -10/Materials | Discovered new exit (range 14) 1281 | -10/Materials | Discovered new exit (range 5) 1345 | -10/Materials | Repaired Lgt. Treads 1379 | -10/Materials | Repaired Autogun 1412 | -10/Materials | Repaired Autogun 1599 | -10/Materials | Discovered new exit (range 11) 1779 | -10/Materials | Entered Subcaves 1787 | -10/Subcaves | Learned 2 Materials zone layouts 1826 | -10/Subcaves | Discovered new exit (range 15) 1862 | -10/Subcaves | Ambushed by Subdweller buried in earth 1906 | -10/Subcaves | Shifting Twisted Machinery released Mak. Light Armor Plating 1926 | -10/Subcaves | Shifting Twisted Machinery released Mak. Flight Unit 2054 | -10/Subcaves | Ambushed by Subdweller buried in earth 2158 | -10/Subcaves | Core integrity fell below 50% 2200 | -10/Subcaves | Discovered new exit (range 15) 2384 | -10/Subcaves | Visited 4L-MR0's lab 2400 | -10/Subcaves | Found Flightbrick 2441 | -10/Subcaves | A swath of the cavern ceiling suddenly collapsed 2645 | -10/Subcaves | Discovered new exit (range 11) 2660 | -10/Subcaves | Shifting Twisted Machinery released Mak. Flight Unit 2661 | -10/Subcaves | Shifting Twisted Machinery released Battle Rifle 2743 | -10/Subcaves | Released subatomizers from SUBCON Basin 2847 | -10/Subcaves | Found SUBCON Basin 3203 | -10/Subcaves | Core integrity fell below 20% 3321 | -10/Subcaves | Entered Recycling 3662 | -8/Recycling | Scanned before Scraplab entrance 3676 | -8/Recycling | Discovered new exit (range 11) 3680 | -8/Recycling | Entered Scraplab 4139 | -8/Recycling | Discovered new exit (range 15) 4200 | -8/Recycling | Build established: Scavenger-Mutant 4738 | -8/Recycling | Build established: Mutant 4986 | -8/Recycling | Entered Scraptown 5274 | -8/Scraptown | Visited Shadow of the Wyrm 5299 | -8/Scraptown | Visited The Evicted 5408 | -8/Scraptown | Heard Great Nut preacher, LISTEN AND RECITE! 5904 | -8/Scraptown | Scanned Subdweller tech in exchange for log data 5949 | -8/Scraptown | Discovered new exit (range 5) 6037 | -8/Scraptown | Visited Awakened 6063 | -8/Scraptown | Visited CR-KLE's Repair Center 6116 | -8/Scraptown | Visited Cave Peace 6219 | -8/Scraptown | Visited Cyclists 6342 | -8/Scraptown | Visited SPCMW 6933 | -8/Scraptown | Visited UFD Registry 6933 | -8/Scraptown | Registered with UFD as "Cryoeater" 6968 | -8/Scraptown | Visited Infowarlord's Domain 6980 | -8/Scraptown | Found Exp. Signal Interpreter 7011 | -8/Scraptown | Visited A0-MCA Data Center 7037 | -8/Scraptown | Given a B+ rating by A0-MCA 7050 | -8/Scraptown | Found A0-MCA's Component Scanner 7080 | -8/Scraptown | Visited Abandonware Association 7096 | -8/Scraptown | Learned abandonware demo "TRNCOAT.EXE" 7397 | -8/Scraptown | Visited Scrapoid Pod Storage 7404 | -8/Scraptown | Found Scrapoid Pod 7621 | -8/Scraptown | Visited Curators Association 7693 | -8/Scraptown | Visited Science Guys 7770 | -8/Scraptown | Visited Scrap Suit Storage 7824 | -8/Scraptown | Visited Modified Component R&D 7880 | -8/Scraptown | Found Scrap Suit 8105 | -8/Scraptown | Visited Analyses Database 8279 | -8/Scraptown | Discovered new exit (range 5) 8317 | -8/Scraptown | Found Scrap Suit 8340 | -8/Scraptown | Identified exit to Factory 8342 | -8/Scraptown | Entered Factory 8342 | -6/Factory | Evolved 8 slots: Propulsion x2, Utility x6 8343 | -6/Factory | Identified exit to Lower Caves 8344 | -6/Factory | Attached Flightbrick, gained temporary slots: Utility x3 8451 | -6/Factory | Discovered exit to Lower Caves (range 7) 8476 | -6/Factory | Discovered new exit (range 6) 8478 | -6/Factory | Identified exit to Factory 8502 | -6/Factory | Repaired Katana 8694 | -6/Factory | Spotted B-75 Beast 8933 | -6/Factory | Build established: Scout 9002 | -6/Factory | Discovered exit to Factory (range 14) 9053 | -6/Factory | Entered another Factory area 9053 | -5/Factory | Evolved 2 slots: Utility x2 9181 | -5/Factory | Discovered new exit (range 12) 9183 | -5/Factory | Identified exit to Upper Caves 9188 | -5/Factory | Identified exit to Factory 9240 | -5/Factory | Discovered exit to Factory (range 17) 9409 | -5/Factory | Fabricated Hyp. Railgun (x2) 9619 | -5/Factory | Entered another Factory area 9619 | -4/Factory | Evolved 2 slots: Utility x2 9760 | -4/Factory | Discovered new exit (range 16) 9805 | -4/Factory | Identified exit to Upper Caves 10269 | -4/Factory | Discovered new exit (range 20) 10346 | -4/Factory | Repaired Adv. Sensor Array 10369 | -4/Factory | First assault squad dispatched 10421 | -4/Factory | Identified exit to Extension 10429 | -4/Factory | Entered Extension 10443 | -4/Extension | Rescued a captive Derelict 10580 | -4/Extension | Rescued a captive Derelict 10581 | -4/Extension | Rescued a captive Derelict 10600 | -4/Extension | Rescued a captive Derelict 10601 | -4/Extension | Rescued a captive Derelict 10628 | -4/Extension | Scrapoids reinforcements arrived? 10700 | -4/Extension | Energy Cycler disabled 10701 | -4/Extension | Rescued a captive Derelict 10701 | -4/Extension | Rescued a captive Derelict 10704 | -4/Extension | Rescued a captive Derelict 10704 | -4/Extension | Rescued a captive Derelict 10704 | -4/Extension | Rescued a captive Derelict 10884 | -4/Extension | Spotted B-86 Titan 10894 | -4/Extension | Destroyed B-86 Titan 10908 | -4/Extension | Spotted B-86 Titan 10909 | -4/Extension | Discovered new exit (range 15) 10923 | -4/Extension | Allies destroyed B-86 Titan 10948 | -4/Extension | Rescued A7 10999 | -4/Extension | Lost 4 allies 11029 | -4/Extension | Disrupted transfer network 11082 | -4/Extension | Lost 5 allies 11116 | -4/Extension | Discovered new exit (range 16) 11116 | -4/Extension | Discovered new exit (range 15) 11240 | -4/Extension | Identified exit to Cetus 11241 | -4/Extension | Identified exit to Research 11284 | -4/Extension | Entered Research 11284 | -3/Research | Accompanied by 2 allies (A7) 11284 | -3/Research | Evolved 2 slots: Utility x2 11350 | -3/Research | Build established: Scavenger-Scout 11673 | -3/Research | Found Spectral Analyzer 11733 | -3/Research | Build established: Scout 11836 | -3/Research | Found Exp. Hacking Suite 11965 | -3/Research | Discovered new exit (range 14) 11978 | -3/Research | Identified exit to Testing 11978 | -3/Research | Entered Testing 12051 | -3/Testing | Protovariant out of control (PY-OCN32Q5IRF) 12051 | -3/Testing | Unleashed a protovariant (PY-OCN32Q5IRF) 12122 | -3/Testing | Found Omega Cannon 12153 | -3/Testing | Build established: Hacker-Scout 12236 | -3/Testing | Spotted Striker 12236 | -3/Testing | Spotted Striker 12289 | -3/Testing | Scanned by Researcher 12304 | -3/Testing | Found Med. Regenerative Plating 12403 | -3/Testing | Repaired Railgun 12410 | -3/Testing | Discovered new exit (range 11) 12446 | -3/Testing | Identified exit to Research 12447 | -3/Testing | Entered Research 12447 | -2/Research | Evolved 2 slots: Utility x2 12572 | -2/Research | Found Exp. Force Field 12583 | -2/Research | Lost 4 parts (1p2u1w) 12614 | -2/Research | Spotted B-90 Cyclops 12698 | -2/Research | Lost 8 parts (1p2n3u2w) 12704 | -2/Research | Discovered new exit (range 9) 12706 | -2/Research | Core integrity fell below 50% 12707 | -2/Research | Identified exit to Quarantine 12708 | -2/Research | Entered Quarantine 12817 | -2/Quarantine | Found Alien Artifact 12817 | -2/Quarantine | Identified Phase Armor 12824 | -2/Quarantine | Core integrity fell below 20% 12827 | -2/Quarantine | Found Alien Artifact 12827 | -2/Quarantine | Identified Hpw. Transdimensional Reconstructor 12827 | -2/Quarantine | Warped through subspace 12835 | -2/Quarantine | Discovered new exit (range 13) 12855 | -2/Quarantine | Lost 6 parts (1p2n2u1w) 12867 | -2/Quarantine | Destroyed by P-80 Master with Gamma Rifle Last Messages --------------- 12823_ Mic. Antimatter Reactor destroyed. 12823_ Slug penetrates H-88 Terminator. 12823_ Penetrated by Slug. 12824_ Molecular Scythe destroyed. 12824_ Penetrated by Slug. 12824_ Slug penetrates Wall. 12824_ Critical hit (Burn: +37). 12824_ Penetrated by Slug. 12827_ Acquired Alien Artifact. 12827_ Identified Hpw. Transdimensional Reconstructor. 12827_ Warped through subspace. 12835_ EXIT=FOUND 12835_ O-24 Administrator: "IFF HANDSHAKE FAILED. SECURING TERMINAL." 12842_ ALERT: Hostiles spotted, dispatching reinforcements to Terminal Q010. 12860_ Acquired Enh. Quantum Rifle. 12862_ R C XS1BAPQ